bitfinex-derivatives/quotes_SOLF0:USTF0_20241203
["timestamp","ask_amount","ask_price","bid_price","bid_amount"]
[1733208806867,2.1783,229.49,229.38,1.3535]
[1733208807070,8.62693016,229.51,229.38,1.3535]
[1733208807370,8.62693016,229.51,229.43,2.1789]
[1733208808470,8.62693016,229.51,229.38,1.3535]
[1733208809373,10.80533016,229.48,229.42,2.1789]
[1733208809571,2.14,229.47,229.38,1.3535]
[1733208809970,2.1786,229.46,229.4,2.1791]
[1733208810271,2.14,229.47,229.4,2.1791]
[1733208810662,8.62693016,229.45,229.4,2.1791]
[1733208810868,10.80553016,229.45,229.35,2.14]
[1733208811068,10.80553016,229.45,229.32,2.14]
[1733208811069,8.62693016,229.45,229.32,2.14]
[1733208811571,8.62693016,229.42,229.32,2.14]
[1733208811962,2.179,229.41,229.35,2.1796]
[1733208812166,2.179,229.41,229.26,8.62693016]
[1733208812167,10.76693016,229.42,229.29,2.14]
[1733208812467,8.62693016,229.39,229.29,2.14]
[1733208812668,2.1794,229.37,229.3,2.18]
[1733208812867,4.3194,229.37,229.24,2.14]
[1733208813974,4.3194,229.37,229.04,5.98701351]
[1733208814175,2.14,229.37,229.26,8.62693016]
[1733208814373,2.14,229.37,229.35,2.1796]
[1733208815076,2.14,229.37,229.33,2.1797]
[1733208816269,2.14,229.37,229.34,2.1796]
[1733208816967,2.14,229.37,229.25,10.76693016]
[1733208817977,2.14,229.37,229.32,2.1798]
[1733208818579,2.1795,229.36,229.3,2.18]
[1733208819180,2.14,229.37,229.31,2.1799]
[1733208820579,2.1795,229.36,229.31,2.1799]
[1733208821175,2.14,229.37,229.25,2.14]
[1733208821476,2.14,229.37,229.25,10.76693016]
[1733208823380,2.14,229.37,229.25,2.14]
[1733208823882,2.1797,229.34,229.24,1.2815]
[1733208825496,2.1798,229.33,229.23,1.2785]
[1733208825688,2.14,229.32,229.23,1.2785]
[1733208826279,2.14,229.32,229.2,2.14]
[1733208826484,2.14,229.32,229.27,2.1803]
[1733208827282,4.3199,229.32,229.2,2.14]
[1733208827590,5.52926797,229.3,229.26,2.1804]
[1733208829185,5.52926797,229.3,229.17,1.2678]
[1733208829389,5.52926797,229.28,229.2,5.52926797]
[1733208831089,5.52926797,229.28,229.24,2.1805]
[1733208831587,2.14,229.27,229.17,3.4078]
[1733208831887,2.14,229.27,229.19,5.52926797]
[1733208832589,2.14,229.27,229.21,5.52926797]
[1733208832791,2.14,229.27,229.22,2.1807]
[1733208833084,2.14,229.27,229.21,5.52926797]
[1733208833791,2.14,229.3,229.25,5.52926797]
[1733208834991,2.14,229.3,229.27,2.1802]
[1733208835486,2.1803,229.28,229.17,3.4078]
[1733208835691,2.1803,229.28,229.2,5.52926797]
[1733208835890,5.52926797,229.27,229.2,5.52926797]
[1733208836185,7.70966797,229.27,229.22,2.1807]
[1733208837988,5.52926797,229.27,229.18,5.52926797]
[1733208838597,5.52926797,229.27,229.13,2.14]
[1733208838796,2.1804,229.26,229.18,5.52926797]
[1733208838991,2.14,229.25,229.18,5.52926797]
[1733208839188,7.71006797,229.23,229.17,2.1812]
[1733208839393,5.52926797,229.21,229.17,2.1812]
[1733208839694,2.14,229.2,229.17,2.1812]
[1733208840394,2.14,229.2,229.19,2.1811]
[1733208840590,7.66926797,229.2,229.08,2.14]
[1733208840795,7.66926797,229.2,229.12,5.52926797]
[1733208840995,7.66926797,229.2,229.03,4.3653]
[1733208841195,7.66926797,229.2,229.11,5.52926797]
[1733208841499,7.66926797,229.2,229.13,2.1816]
[1733208841695,7.66926797,229.2,229.12,6.62085836]
[1733208841892,7.66926797,229.2,229.12,5.52926797]
[1733208842096,9.85026797,229.2,229.16,2.1814]
[1733208842992,5.52926797,229.18,229.13,2.1816]
[1733208843194,5.52926797,229.18,229.1,5.52926797]
[1733208843391,5.52926797,229.18,229.11,1.09168791]
[1733208843599,5.52926797,229.18,229.12,1.09168791]
[1733208843896,5.52926797,229.18,229.1,5.52926797]
[1733208844100,5.52926797,229.18,229.11,1.09169142]
[1733208844297,5.52926797,229.18,229.12,1.09169142]
[1733208844500,5.52926797,229.18,229.16,2.1814]
[1733208845595,2.14,229.2,229.19,2.1811]
[1733208845791,7.66926797,229.2,229.12,5.52926797]
[1733208846001,7.66926797,229.2,229.13,6.072774]
[1733208846197,7.66926797,229.2,229.14,1.0916224]
[1733208846398,2.14,229.2,229.15,1.0916224]
[1733208846695,2.6278,229.25,229.16,1.0916224]
[1733208846898,5.52926797,229.19,229.1,5.52926797]
[1733208847200,5.52926797,229.19,229.12,5.52926797]
[1733208847396,5.52926797,229.19,229.13,8.25868306]
[1733208847697,5.52926797,229.19,229.15,2.1814]
[1733208848006,5.52926797,229.19,229.16,1.09165096]
[1733208848194,5.52926797,229.19,229.17,1.09165096]
[1733208848403,5.52926797,229.19,229.12,5.52926797]
[1733208848700,5.52926797,229.19,229.13,11.2612216]
[1733208848899,5.52926797,229.19,229.14,6.07776765]
[1733208849100,5.52926797,229.19,229.15,4.33123908]
[1733208849298,5.52926797,229.19,229.16,4.33240487]
[1733208849497,2.14,229.21,229.12,5.52926797]
[1733208849698,5.52926797,229.2,229.13,11.26558481]
[1733208849893,5.52926797,229.2,229.12,5.52926797]
[1733208849894,5.52926797,229.2,229.14,6.07947617]
[1733208850093,2.14,229.21,229.17,2.1813]
[1733208850297,5.52926797,229.2,229.17,2.1813]
[1733208851199,5.52926797,229.29,229.18,6.62085697]
[1733208851400,5.52926797,229.29,229.2,5.52926797]
[1733208851999,5.52926797,229.27,229.18,7.66926797]
[1733208852494,5.52926797,229.25,229.19,4.33557168]
[1733208852700,5.52926797,229.25,229.22,2.1807]
[1733208852900,5.52926797,229.25,229.18,7.66926797]
[1733208853099,5.52926797,229.25,229.21,2.1808]
[1733208853399,5.52926797,229.23,229.14,7.66926797]
[1733208853594,5.52926797,229.23,229.15,19.94967467]
[1733208853793,5.52926797,229.23,229.16,13.45860222]
[1733208853993,5.52926797,229.23,229.17,11.27590307]
[1733208854197,2.14,229.24,229.18,1.09134957]
[1733208854198,5.52926797,229.21,229.18,1.09134957]
[1733208854396,5.52926797,229.19,229.13,1.3816]
[1733208854596,5.52926797,229.19,229.14,6.08626396]
[1733208854803,7.66926797,229.19,229.15,6.08626396]
[1733208855095,7.66926797,229.19,229.09,2.23487504]
[1733208855096,7.66926797,229.19,229.16,3.27283573]
[1733208855297,5.52926797,229.17,229.09,5.52926797]
[1733208855507,5.52926797,229.17,229.1,13.47162834]
[1733208855702,5.52926797,229.17,229.11,11.28843772]
[1733208855900,5.52926797,229.17,229.12,6.08825931]
[1733208856103,5.52926797,229.17,229.13,6.52330682]
[1733208856301,5.52926797,229.17,229.13,2.1816]
[1733208856506,4.3211,229.19,229.04,4.30728074]
[1733208856507,5.52926797,229.15,229.07,5.52926797]
[1733208856704,5.52926797,229.15,229.11,2.1818]
[1733208857205,5.52926797,229.13,229.09,2.182]
[1733208857606,2.14,229.14,229.09,2.182]
[1733208857909,4.3216,229.14,229.07,2.1821]
[1733208858103,4.3216,229.14,229.01,1.3463]
[1733208858309,2.14,229.14,229.02,6.09099529]
[1733208858510,2.1817,229.13,229.08,2.1821]
[1733208859519,2.14,229.14,229.08,2.1821]
[1733208860213,4.3216,229.14,229.08,2.1821]
[1733208861113,4.3216,229.14,229.09,2.182]
[1733208861510,2.14,229.14,229.01,1.3463]
[1733208861706,2.14,229.14,229.13,2.1816]
[1733208862013,2.14,229.15,229.03,8.65307208]
[1733208862208,2.14,229.15,229.12,2.1816]
[1733208862406,2.14,229.15,229.03,8.65307208]
[1733208862914,2.14,229.15,229.14,2.1815]
[1733208863111,2.14,229.17,229.06,8.65307208]
[1733208863514,2.14,229.18,229.15,2.1814]
[1733208864019,9.91867208,229.22,229.15,2.1814]
[1733208864214,2.14,229.21,229.15,2.1814]
[1733208864414,4.3209,229.21,229.06,8.65307208]
[1733208864620,4.3209,229.21,229.16,2.1813]
[1733208865318,4.3209,229.21,229.17,2.1812]
[1733208865813,1.2656,229.22,229.09,8.65307208]
[1733208866010,2.6801,229.24,229.12,8.65307208]
[1733208866011,3.436,229.24,229.12,8.65307208]
[1733208866211,3.436,229.24,229.12,2.14]
[1733208867917,3.436,229.24,229.19,2.181]
[1733208868213,2.181,229.21,229.1,1.2884]
[1733208868415,8.65307208,229.22,229.1,1.2884]
[1733208868814,2.1811,229.2,229.15,2.1814]
[1733208869019,2.14,229.19,229.15,2.1814]
[1733208869615,2.14,229.19,229.16,2.1813]
[1733208870420,2.14,229.19,229.15,2.1814]
[1733208873818,2.1813,229.17,229.12,2.1817]
[1733208874020,2.1813,229.17,229.06,1.3123]
[1733208874424,2.1813,229.17,229.12,2.1817]
[1733208875220,2.14,229.19,229.06,1.3123]
[1733208875525,2.1812,229.18,229.06,1.3123]
[1733208875926,2.14,229.19,229.06,1.3123]
[1733208876723,1.296,229.24,229.08,8.65307208]
[1733208876927,3.436,229.24,229.08,8.65307208]
[1733208877129,2.1808,229.22,229.08,8.65307208]
[1733208877627,7.71393021,229.22,229.14,5.53313021]
[1733208877822,5.53313021,229.22,229.18,2.1811]
[1733208878327,5.53313021,229.22,229.14,5.53313021]
[1733208879627,2.1808,229.22,229.1,10.78559975]
[1733208879821,3.436,229.24,229.1,10.78559975]
[1733208880228,3.436,229.24,229.07,10.78559975]
[1733208880426,8.64559975,229.21,229.07,10.78559975]
[1733208880930,2.1811,229.19,229.07,10.78559975]
[1733208881125,4.3211,229.19,229.08,2.14]
[1733208881632,1.296,229.24,229.1,8.64559975]
[1733208882029,1.296,229.24,229.11,2.14]
[1733208882332,1.296,229.24,229.14,2.1815]
[1733208882632,1.296,229.24,229.11,2.14]
[1733208882833,1.296,229.24,229.2,2.1809]
[1733208883830,1.296,229.24,229.11,2.14]
[1733208884036,3.4766,229.24,229.19,2.181]
[1733208884538,2.1808,229.22,229.17,2.1812]
[1733208885928,1.296,229.24,229.11,2.14]
[1733208887539,2.1809,229.21,229.11,2.14]
[1733208888234,1.2655,229.29,229.16,8.64559975]
[1733208888433,1.2655,229.29,229.17,2.14]
[1733208889040,2.1802,229.28,229.24,2.1806]
[1733208889238,1.2655,229.29,229.17,2.14]
[1733208889842,1.2655,229.29,229.17,3.4845]
[1733208890041,3.4457,229.29,229.2,2.1809]
[1733208890244,1.2655,229.29,229.17,3.4845]
[1733208890638,2.1803,229.27,229.21,2.1808]
[1733208890942,2.1803,229.27,229.17,3.4845]
[1733208891135,2.1804,229.26,229.17,3.4845]
[1733208891333,1.2655,229.29,229.17,3.4845]
[1733208891735,2.1804,229.27,229.21,2.1808]
[1733208892140,2.1804,229.27,229.17,3.4845]
[1733208892337,2.1804,229.27,229.22,2.1808]
[1733208892640,2.1806,229.24,229.14,2.14]
[1733208894241,2.14,229.25,229.09,8.64559975]
[1733208894438,2.14,229.25,229.1,2.14]
[1733208894941,2.1809,229.22,229.16,2.1813]
[1733208895248,2.14,229.25,229.16,2.1813]
[1733208896447,8.64559975,229.23,229.16,2.1813]
[1733208896845,2.1809,229.21,229.16,2.1813]
[1733208897047,2.14,229.2,229.16,2.1813]
[1733208897348,2.14,229.2,229.17,2.1813]
[1733208898048,2.1811,229.19,229.15,2.1814]
[1733208898248,2.1811,229.19,229.1,2.14]
[1733208898543,2.1811,229.19,229.08,1.319]
[1733208899947,2.1811,229.19,229.14,2.1815]
[1733208900141,3.469,229.2,229.08,1.319]
[1733208900348,2.1813,229.17,229.08,1.319]
[1733208901245,12.11459975,229.2,229.08,1.319]
[1733208901439,1.329,229.2,229.16,2.1813]
[1733208901846,2.14,229.21,229.16,2.1813]
[1733208902550,2.14,229.21,229.17,2.1812]
[1733208902744,2.14,229.21,229.11,2.14]
[1733208903144,1.3787,229.25,229.12,8.64559975]
[1733208903353,4.3207,229.24,229.19,2.1811]
[1733208903745,2.14,229.24,229.21,2.1808]
[1733208903953,2.14,229.24,229.12,8.64559975]
[1733208904252,2.14,229.24,229.11,2.14]
[1733208904549,2.14,229.28,229.15,8.64559975]
[1733208904744,10.02389975,229.31,229.16,2.14]
[1733208904941,2.14,229.3,229.16,2.14]
[1733208905340,4.3201,229.3,229.24,2.1805]
[1733208905544,4.3201,229.3,229.16,2.14]
[1733208905942,2.14,229.3,229.24,2.1806]
[1733208906143,2.1801,229.29,229.24,2.1806]
[1733208907851,2.14,229.3,229.17,1.2854]
[1733208908043,8.64559975,229.28,229.17,1.2854]
[1733208908246,8.64559975,229.28,229.12,0.2593]
[1733208908544,8.64559975,229.25,229.11,2.14]
[1733208908753,8.64559975,229.25,229.09,8.64559975]
[1733208908754,2.14,229.24,229.12,2.14]
[1733208908951,4.3207,229.24,229.15,2.1814]
[1733208909149,2.14,229.24,229.12,2.14]
[1733208909346,2.14,229.24,229.11,2.14]
[1733208909548,2.1809,229.21,229.15,2.1813]
[1733208909949,2.1809,229.21,229.11,2.14]
[1733208910653,2.1811,229.19,229.08,3.5293]
[1733208911044,2.1811,229.19,229.13,2.1816]
[1733208911251,2.1814,229.16,229.03,10.78559975]
[1733208911445,2.1814,229.16,229.04,6.11402969]
[1733208911643,2.14,229.18,229.03,10.78559975]
[1733208912153,2.1815,229.14,229.03,10.78559975]
[1733208912355,4.7654,229.18,229.03,10.78559975]
[1733208912648,4.7654,229.18,229.07,2.1821]
[1733208913244,2.1817,229.12,229.06,2.1823]
[1733208914055,2.14,229.13,229.02,1.2983]
[1733208914854,2.1819,229.1,229.03,2.1825]
[1733208915157,2.1819,229.1,229.02,1.2983]
[1733208915355,2.14,229.13,229.04,2.1825]
[1733208915557,8.64559975,229.1,228.94,8.64559975]
[1733208915755,8.64559975,229.1,228.94,10.78559975]
[1733208916149,8.64559975,229.1,228.94,2.14]
[1733208916451,8.64559975,229.1,228.9,2.14]
[1733208916658,2.1826,229.03,228.95,2.1833]
[1733208916857,15.6754,229.18,228.93,8.64559975]
[1733208916858,2.14,229.02,228.93,8.64559975]
[1733208917053,2.14,229.01,228.93,8.64559975]
[1733208917253,2.14,229.0,228.96,2.1832]
[1733208917454,2.14,229.0,228.93,8.64559975]
[1733208917659,2.14,229.0,228.9,8.64559975]
[1733208918164,2.14,229.0,228.89,1.3599]
[1733208918559,2.14,229.0,228.94,2.1834]
[1733208918763,2.14,229.0,228.89,1.3599]
[1733208918959,2.14,229.0,228.94,2.1834]
[1733208919357,2.14,229.0,228.89,1.3599]
[1733208919358,4.3228,229.0,228.89,1.3599]
[1733208919659,2.14,229.0,228.92,2.1835]
[1733208919856,4.3229,229.0,228.92,2.1835]
[1733208920057,4.3229,229.0,228.89,1.3599]
[1733208920858,4.3229,229.0,228.91,2.1836]
[1733208921060,4.3229,229.0,228.89,1.3599]
[1733208921252,2.14,229.0,228.89,1.3599]
[1733208921459,8.64559975,228.98,228.9,2.1838]
[1733208922458,8.64559975,228.98,228.88,2.1839]
[1733208922863,2.1832,228.97,228.82,10.78559975]
[1733208923066,2.1832,228.97,228.89,2.1839]
[1733208923356,10.82839975,229.0,228.85,8.64559975]
[1733208923556,2.14,228.99,228.88,8.64559975]
[1733208923962,2.14,228.99,228.96,2.1832]
[1733208924161,2.14,228.99,228.88,8.64559975]
[1733208924162,2.14,228.99,228.88,9.92499975]
[1733208924668,2.14,228.99,228.97,2.1831]
[1733208925058,2.14,228.99,228.96,2.1832]
[1733208925458,2.14,228.99,228.88,9.92499975]
[1733208925762,2.14,228.99,228.95,2.1833]
[1733208926263,2.14,228.99,228.86,1.3969]
[1733208926264,8.64559975,228.98,228.86,1.3969]
[1733208926454,8.64559975,228.98,228.83,2.14]
[1733208927053,8.64559975,228.95,228.83,2.14]
[1733208927358,2.14,228.94,228.83,2.14]
[1733208927569,10.82919975,228.92,228.85,2.1842]
[1733208928667,10.82919975,228.92,228.86,2.1842]
[1733208929054,10.82919975,228.92,228.82,1.3457]
[1733208929260,2.1839,228.9,228.72,3.88869129]
[1733208929459,8.64559975,228.82,228.73,1.09294524]
[1733208929662,10.78559975,228.82,228.68,1.3401]
[1733208930162,10.78559975,228.82,228.62,2.18671763]
[1733208930358,3.5227,228.81,228.73,2.1854]
[1733208930558,1.338,228.81,228.73,2.1854]
[1733208930758,1.338,228.81,228.78,2.1849]
[1733208930963,2.18,228.84,228.7,8.64559975]
[1733208931158,8.64559975,228.85,228.7,8.64559975]
[1733208931372,2.18,228.84,228.78,2.1849]
[1733208931662,2.18,228.84,228.71,2.18]
[1733208931858,2.18,228.86,228.72,2.18]
[1733208932064,2.18,228.86,228.82,2.1845]
[1733208932563,3.518,228.87,228.82,2.1845]
[1733208933066,3.518,228.87,228.77,2.1849]
[1733208933257,3.518,228.87,228.74,8.64559975]
[1733208933766,3.518,228.87,228.82,2.1845]
[1733208933959,3.518,228.87,228.74,8.64559975]
[1733208934762,3.518,228.87,228.77,2.1849]
[1733208934969,9.98359975,228.87,228.65,4.29700026]
[1733208935261,2.1845,228.84,228.74,2.1853]
[1733208935468,8.64559975,228.84,228.67,2.18]
[1733208935664,8.64559975,228.84,228.68,6.07602629]
[1733208935864,8.64559975,228.84,228.69,1.09319078]
[1733208936067,8.64559975,228.84,228.67,2.18]
[1733208936273,8.64559975,228.84,228.68,1.09342548]
[1733208936567,2.1845,228.83,228.67,2.18]
[1733208936766,8.64559975,228.84,228.68,1.0933873]
[1733208936966,2.1846,228.82,228.75,2.1852]
[1733208937271,2.18,228.81,228.75,2.1852]
[1733208937469,4.3647,228.81,228.73,2.1854]
[1733208937662,2.18,228.81,228.73,2.1854]
[1733208938060,2.185,228.78,228.71,2.1855]
[1733208938770,2.1848,228.79,228.72,2.1855]
[1733208938970,2.18,228.81,228.64,4.85]
[1733208939170,2.18,228.81,228.65,11.24164297]
[1733208939366,2.18,228.81,228.67,8.64559975]
[1733208939669,2.18,228.81,228.68,1.09347087]
[1733208939862,2.18,228.8,228.69,8.64559975]
[1733208940065,2.18,228.8,228.69,2.18]
[1733208940265,2.18,228.8,228.75,2.1852]
[1733208940462,2.18,228.8,228.7,8.64559975]
[1733208940666,2.18,228.8,228.71,1.09338621]
[1733208940872,2.18,228.8,228.77,2.185]
[1733208941665,1.338,228.87,228.74,2.18]
[1733208941871,1.338,228.87,228.75,2.37669351]
[1733208942174,1.338,228.87,228.81,2.1846]
[1733208942376,1.338,228.87,228.75,1.2835]
[1733208942674,1.338,228.87,228.76,1.09315884]
[1733208942869,2.1842,228.86,228.75,1.2835]
[1733208943069,8.64559975,228.83,228.74,2.18]
[1733208943369,2.18,228.82,228.7,2.18]
[1733208943674,2.18,228.82,228.71,1.09338579]
[1733208943874,2.18,228.82,228.7,2.18]
[1733208944075,2.18,228.82,228.71,1.09339493]
[1733208944367,2.18,228.82,228.7,2.18]
[1733208944565,2.18,228.82,228.71,1.09338658]
[1733208944566,8.64559975,228.79,228.71,1.09338658]
[1733208944769,2.18,228.78,228.72,2.1855]
[1733208944966,2.18,228.78,228.65,2.18]
[1733208945165,2.18,228.78,228.66,11.23461841]
[1733208945367,2.18,228.78,228.65,2.18]
[1733208945368,1.2793,228.82,228.67,14.71638346]
[1733208945566,1.2793,228.82,228.68,13.41965794]
[1733208945768,1.2793,228.82,228.69,13.41965794]
[1733208945968,1.2793,228.82,228.7,11.23301657]
[1733208946167,1.2793,228.82,228.71,6.07078371]
[1733208946377,1.2793,228.82,228.72,1.09354313]
[1733208946677,1.2793,228.82,228.69,2.18]
[1733208946876,2.1848,228.8,228.73,2.1853]
[1733208947076,2.18,228.79,228.69,2.18]
[1733208947272,2.18,228.79,228.67,8.64559975]
[1733208947575,2.185,228.77,228.68,1.09353821]
[1733208947779,10.82559975,228.79,228.69,1.09353821]
[1733208947979,1.2893,228.76,228.6,10.82559975]
[1733208948182,1.2893,228.76,228.63,8.64559975]
[1733208948379,1.2893,228.76,228.64,11.23430505]
[1733208948574,1.35,228.81,228.66,8.64559975]
[1733208948777,1.35,228.81,228.76,2.1851]
[1733208948981,2.18,228.81,228.76,2.1851]
[1733208950383,2.18,228.81,228.67,1.3436]
[1733208950384,2.18,228.81,228.77,2.1849]
[1733208950878,1.2793,228.82,228.69,8.64559975]
[1733208951082,2.18,228.81,228.75,2.1852]
[1733208951280,2.18,228.81,228.69,8.64559975]
[1733208951486,8.64559975,228.78,228.7,1.09351337]
[1733208951681,8.64559975,228.78,228.63,2.27412516]
[1733208951881,2.1851,228.77,228.64,19.90031923]
[1733208952082,2.18,228.76,228.7,2.1856]
[1733208952584,2.18,228.76,228.71,2.1855]
[1733208954883,2.18,228.76,228.72,2.1855]
[1733208955385,4.3651,228.76,228.71,2.1856]
[1733208956382,4.3651,228.76,228.64,0.09456119]
[1733208956688,4.3651,228.76,228.65,19.95488381]
[1733208956878,4.3651,228.76,228.66,19.95488381]
[1733208957086,4.3651,228.76,228.67,11.27884737]
[1733208957288,4.3651,228.76,228.68,11.27884737]
[1733208957488,4.3651,228.76,228.69,11.27884737]
[1733208957687,4.3651,228.76,228.7,4.33801822]
[1733208957877,4.3651,228.76,228.71,4.33801822]
[1733208958080,1.2793,228.82,228.65,8.64559975]
[1733208958282,2.18,228.81,228.68,8.64559975]
[1733208958480,2.18,228.81,228.69,17.12012613]
[1733208958685,4.3646,228.81,228.76,2.1851]
[1733208959080,2.1846,228.81,228.76,2.1851]
[1733208959286,1.2793,228.82,228.77,4.34348553]
[1733208959489,2.6617,228.89,228.78,4.34326464]
[1733208959689,2.6617,228.89,228.79,4.34326464]
[1733208959890,2.28,228.88,228.8,4.34326464]
[1733208960091,2.1841,228.87,228.81,3.27798789]
[1733208960293,2.28,228.88,228.82,1.09326028]
[1733208960595,2.28,228.88,228.74,4.39727151]
[1733208960786,2.28,228.88,228.75,28.63343961]
[1733208960989,2.28,228.87,228.76,19.98783986]
[1733208961190,2.28,228.87,228.77,19.98783986]
[1733208961390,2.28,228.87,228.78,19.98783986]
[1733208961685,2.28,228.89,228.79,19.98783986]
[1733208961884,2.28,228.89,228.8,11.2974747]
[1733208962086,2.28,228.89,228.81,11.2974747]
[1733208962390,10.92559975,228.89,228.82,4.34518257]
[1733208962589,10.92559975,228.89,228.83,1.09327617]
[1733208962790,1.2859,228.91,228.76,8.74070341]
[1733208962985,2.28,228.88,228.78,4.39727151]
[1733208963191,3.4696,228.91,228.82,2.1845]
[1733208963490,2.28,228.9,228.83,4.34845647]
[1733208963685,2.28,228.9,228.84,4.34845647]
[1733208963995,2.28,228.9,228.87,2.1841]
[1733208964292,4.4639,228.9,228.83,2.1844]
[1733208964494,2.28,228.9,228.84,4.35115578]
[1733208964698,2.28,228.9,228.76,37.19736304]
[1733208964892,2.1839,228.89,228.83,2.1844]
[1733208965085,2.1839,228.89,228.75,10.46079916]
[1733208965086,2.28,228.9,228.75,10.46079916]
[1733208965295,2.28,228.9,228.76,20.0186293]
[1733208965488,2.28,228.9,228.77,13.50117833]
[1733208965690,2.28,228.9,228.78,11.31487743]
[1733208965895,2.28,228.9,228.79,6.10091665]
[1733208966095,2.28,228.9,228.8,4.35187593]
[1733208966295,2.28,228.9,228.76,8.64559975]
[1733208966497,1.2859,228.91,228.77,11.32246975]
[1733208966696,2.28,228.9,228.78,11.32246975]
[1733208966893,2.1839,228.89,228.83,2.1844]
[1733208967600,2.1844,228.84,228.78,2.1849]
[1733208967792,2.28,228.83,228.78,2.1849]
[1733208967996,4.4644,228.83,228.76,2.1851]
[1733208968198,2.28,228.83,228.77,1.09328077]
[1733208968401,2.28,228.83,228.7,9.97899975]
[1733208968696,2.1847,228.81,228.74,2.1853]
[1733208969298,2.1849,228.79,228.73,2.1854]
[1733208969497,2.28,228.78,228.73,2.1854]
[1733208969697,2.28,228.78,228.72,2.1855]
[1733208970099,4.4649,228.78,228.72,2.1855]
[1733208970301,2.28,228.78,228.73,2.1854]
[1733208970500,2.28,228.78,228.66,10.92559975]
[1733208970703,2.28,228.78,228.67,11.34668835]
[1733208971000,2.28,228.78,228.66,10.92559975]
[1733208971001,2.28,228.78,228.71,2.1856]
[1733208971797,4.4649,228.78,228.66,10.92559975]
[1733208971997,2.1849,228.78,228.67,11.79217113]
[1733208972199,2.28,228.77,228.68,11.35477149]
[1733208972395,2.28,228.77,228.71,2.1855]
[1733208972797,2.28,228.77,228.66,10.92559975]
[1733208973002,2.28,228.77,228.67,11.35798751]
[1733208973301,2.28,228.77,228.68,4.36845673]
[1733208973508,2.28,228.77,228.69,1.09350065]
[1733208973802,4.37,228.76,228.66,10.92559975]
[1733208974003,4.37,228.76,228.72,2.1855]
[1733208974902,4.37,228.76,228.69,2.1858]
[1733208975096,4.37,228.76,228.66,10.92559975]
[1733208975296,4.37,228.76,228.67,4.37051871]
[1733208975499,4.37,228.76,228.68,1.09349999]
[1733208975698,4.37,228.76,228.64,1.3731]
[1733208975898,8.64559975,228.74,228.65,4.37049141]
[1733208976207,8.64559975,228.74,228.58,8.74103999]
[1733208976505,8.64559975,228.71,228.59,6.12096952]
[1733208976708,8.64559975,228.68,228.53,8.74103999]
[1733208976909,2.28,228.67,228.6,2.1866]
[1733208977202,2.28,228.67,228.52,3.5985]
[1733208977409,3.5684,228.67,228.53,14.76616446]
[1733208977603,3.5684,228.67,228.53,8.64559975]
[1733208977806,3.5684,228.67,228.54,1.09414617]
[1733208978008,2.1862,228.65,228.58,2.1868]
[1733208978403,2.1864,228.63,228.55,2.1871]
[1733208978805,3.5684,228.67,228.51,8.64559975]
[1733208979513,2.1862,228.65,228.57,2.1869]
[1733208980510,2.1863,228.64,228.55,2.1871]
[1733208980705,2.1863,228.64,228.5,8.64559975]
[1733208980906,3.5684,228.67,228.5,8.64559975]
[1733208981105,2.1863,228.64,228.5,8.64559975]
[1733208981316,3.5684,228.67,228.5,8.64559975]
[1733208981712,2.1865,228.62,228.5,8.64559975]
[1733208981920,2.28,228.61,228.5,8.64559975]
[1733208983317,2.28,228.61,228.47,8.64559975]
[1733208983512,2.28,228.61,228.45,1.388]
[1733208983513,8.64559975,228.59,228.45,1.388]
[1733208983914,10.83239975,228.59,228.5,2.1875]
[1733208984212,10.83239975,228.59,228.45,1.388]
[1733208984213,8.64559975,228.59,228.45,1.388]